bitfinex-derivatives/quotes_ETHF0:USTF0_20250404
["timestamp","ask_amount","ask_price","bid_price","bid_amount"]
[1743763396507,4.32427,1791.5,1791.1,6.79399]
[1743763396709,1.4177,1791.4,1791.2,1.5186]
[1743763397110,3.2078,1791.7,1791.2,2.63521]
[1743763397308,4.6255,1791.7,1791.2,1.5186]
[1743763397503,3.2078,1791.5,1791.2,1.5186]
[1743763397703,1.4177,1791.4,1791.2,1.5186]
[1743763397900,1.11659,1791.3,1791.2,1.5186]
[1743763398209,1.11665,1791.2,1790.9,4.3913]
[1743763398404,1.11672,1791.1,1790.9,1.1835]
[1743763398598,1.11678,1791.0,1790.9,1.5186]
[1743763398798,1.11684,1790.9,1790.8,1.1562]
[1743763398998,1.4177,1791.0,1790.8,1.1562]
[1743763399199,1.11684,1790.9,1790.8,1.1562]
[1743763399408,1.4177,1791.0,1790.8,1.1562]
[1743763399800,2.79155,1791.3,1790.8,3.6562]
[1743763399801,3.2078,1791.3,1790.8,3.6562]
[1743763400108,1.11655,1791.4,1790.9,4.5968]
[1743763400109,2.55246,1791.4,1790.9,4.5968]
[1743763400309,1.4359,1791.4,1791.1,1.11672]
[1743763400504,3.2078,1791.5,1791.2,1.389]
[1743763400701,2.55232,1791.6,1791.3,1.1562]
[1743763400905,1.11648,1791.5,1791.4,1.389]
[1743763401101,3.2078,1791.7,1791.4,1.389]
[1743763401299,4.6437,1791.7,1791.4,1.389]
[1743763401504,4.3243,1791.5,1791.3,1.1562]
[1743763401813,1.4359,1791.4,1791.3,1.1562]
[1743763402707,3.2078,1791.7,1791.3,1.1562]
[1743763402907,1.5234,1791.6,1791.4,1.3974]
[1743763403315,3.2078,1791.7,1791.4,2.51389]
[1743763403505,4.7312,1791.7,1791.4,1.3974]
[1743763403704,1.11653,1791.4,1791.3,1.1562]
[1743763403914,4.32431,1791.5,1791.3,1.1562]
[1743763404112,1.5234,1791.4,1790.6,6.00033]
[1743763404308,3.2078,1791.3,1790.8,1.11687]
[1743763404514,1.11674,1791.1,1790.9,1.2628]
[1743763404814,2.6401,1791.2,1791.0,1.3974]
[1743763405008,1.11672,1791.1,1791.0,1.3974]
[1743763405209,2.57502,1791.1,1791.0,1.3974]
[1743763405915,5.78282,1791.1,1791.0,1.3974]
[1743763406111,4.6661,1791.1,1790.6,3.2078]
[1743763406314,1.11695,1790.8,1790.5,3.82806]
[1743763406712,2.57525,1790.8,1790.5,3.82806]
[1743763406913,2.58361074,1790.8,1790.5,3.82804]
[1743763407308,1.46666074,1790.8,1790.6,1.117]
[1743763407508,1.46666074,1790.8,1790.7,5.77297]
[1743763407509,0.00836074,1790.8,1790.7,5.77297]
[1743763407815,3.2078,1791.2,1791.1,1.11672]
[1743763408118,1.1166,1791.3,1791.1,1.11669]
[1743763408312,3.2078,1791.5,1791.2,1.11661]
[1743763408512,2.56604,1791.4,1791.1,1.11666]
[1743763408723,1.45786074,1791.4,1791.2,1.11662]
[1743763408911,1.45786074,1791.4,1791.1,1.11669]
[1743763409219,1.11669,1791.2,1791.0,2.26966]
[1743763409516,1.11659,1791.3,1791.1,1.11671]
[1743763409913,5.99954,1791.2,1790.6,3.21616074]
[1743763410216,4.6573,1791.2,1790.7,3.94532]
[1743763410406,4.6573,1791.2,1790.7,1.1529]
[1743763410611,3.21616074,1791.4,1790.9,3.2078]
[1743763410810,1.11663,1791.3,1791.0,1.11674]
[1743763411015,4.33273074,1791.4,1790.9,3.2078]
[1743763411212,1.11662,1791.3,1790.9,3.2078]
[1743763411413,1.11662,1791.3,1791.0,1.11673]
[1743763411715,1.11671,1791.2,1790.9,1.11682]
[1743763412015,1.11671,1791.2,1791.0,1.11677]
[1743763412218,4.32451,1791.2,1791.0,1.11677]
[1743763412417,1.4454,1791.3,1790.9,10.54186]
[1743763412618,0.00836074,1791.4,1791.3,1.11659]
[1743763412920,0.00836074,1791.4,1791.2,2.446]
[1743763413119,4.33274074,1791.4,1791.2,2.446]
[1743763413318,1.11659,1791.3,1791.2,2.446]
[1743763413515,3.21616074,1791.4,1790.9,1.11679]
[1743763413724,4.6532,1791.2,1790.8,8.86668]
[1743763414017,1.11674,1791.1,1790.9,1.11684]
[1743763414319,1.1168,1791.0,1790.8,8.86667]
[1743763414512,1.4249,1791.1,1790.9,1.11683]
[1743763414913,2.54163,1791.1,1790.8,8.86666]
[1743763415221,1.11684,1790.9,1790.8,4.542]
[1743763415516,3.2078,1791.0,1790.8,4.542]
[1743763415709,1.11686,1790.9,1790.7,3.53682]
[1743763416121,1.11686,1790.9,1790.7,6.03682]
[1743763416320,1.1169,1790.8,1790.7,2.4199]
[1743763416622,2.79253,1790.7,1790.1,4.32512]
[1743763416815,1.1172,1790.4,1790.2,1.11726]
[1743763417118,6.00056,1790.5,1790.0,2.4569]
[1743763417318,3.2078,1790.1,1789.4,3.2078]
[1743763417518,1.11751,1789.9,1789.5,1.2749]
[1743763417717,4.6568,1790.0,1789.6,3.2078]
[1743763417913,0.00836074,1789.9,1789.6,4.32543]
[1743763418222,0.00836074,1789.9,1789.8,1.11753]
[1743763418517,3.2078,1790.7,1789.8,10.54356]
[1743763418816,1.11718,1790.4,1789.9,2.33631]
[1743763419020,1.449,1790.3,1790.0,3.2078]
[1743763419220,1.449,1790.3,1789.9,1.2189]
[1743763419420,1.449,1790.3,1790.0,1.2749]
[1743763419714,1.12558074,1790.3,1790.0,1.2749]
[1743763419916,1.449,1790.2,1790.0,1.2749]
[1743763420324,3.2078,1790.1,1789.9,1.22726074]
[1743763420519,1.449,1790.2,1789.9,4.43506074]
[1743763420821,1.449,1790.2,1790.0,1.11738]
[1743763421117,1.449,1790.2,1789.9,5.55248074]
[1743763421416,0.00836074,1790.3,1790.0,1.1174]
[1743763421622,0.00836074,1790.3,1789.9,4.43506074]
[1743763421824,1.12560074,1790.3,1789.9,2.34469074]
[1743763422019,1.4365,1790.2,1789.9,1.22726074]
[1743763422419,2.55379,1790.2,1789.9,1.22726074]
[1743763422725,1.11735,1790.1,1789.9,1.22726074]
[1743763422925,1.1174,1790.0,1789.9,0.00836074]
[1743763423426,2.5973,1790.0,1789.9,0.00836074]
[1743763424026,1.4799,1790.0,1789.9,1.12583074]
[1743763424229,4.33340074,1790.3,1790.0,1.11735]
[1743763424524,2.5972,1790.2,1790.0,1.5417]
[1743763424716,1.11734,1790.1,1790.0,1.5417]
[1743763424916,2.59724,1790.1,1790.0,1.5417]
[1743763425113,2.59724,1790.1,1789.9,0.00836074]
[1743763425317,1.4799,1790.1,1789.9,1.12580074]
[1743763425518,1.4799,1790.1,1789.9,1.55006074]
[1743763425718,1.4799,1790.1,1789.9,4.01246074]
[1743763425719,1.1174,1790.0,1789.9,4.01246074]
[1743763425918,1.4799,1790.1,1790.0,1.1174]
[1743763426126,1.4799,1790.1,1790.0,2.6591]
[1743763426427,1.12559074,1790.3,1790.0,5.86687]
[1743763426620,1.5033,1790.2,1790.0,2.65907]
[1743763426822,2.62062,1790.2,1790.0,1.5417]
[1743763427023,1.5033,1790.2,1790.1,1.11734]
[1743763427424,0.00836074,1790.3,1790.2,1.11728]
[1743763427623,0.00836074,1790.3,1790.2,8.86808]
[1743763427825,0.00836074,1790.3,1790.2,11.36808]
[1743763428321,2.62038,1790.6,1790.2,11.36808]
[1743763428322,1.5033,1790.6,1790.5,1.11709]
[1743763428525,8.9782,1791.1,1790.8,1.11688]
[1743763428723,2.62012,1791.0,1790.7,1.11694]
[1743763428920,1.11684,1790.9,1790.7,1.4567]
[1743763429120,1.5033,1790.8,1790.7,1.4567]
[1743763429327,3.2078,1791.2,1790.7,4.6645]
[1743763429526,1.11661,1791.3,1791.1,1.11672]
[1743763429824,3.2078,1791.2,1790.8,4.543]
[1743763430029,3.2078,1790.9,1790.8,4.543]
[1743763430326,4.32462,1791.0,1790.8,0.00836074]
[1743763430530,4.32462,1791.0,1790.8,1.12525074]
[1743763430732,3.2078,1791.2,1790.8,1.49466074]
[1743763431031,2.59027,1791.2,1790.9,1.11684]
[1743763431326,1.11672,1791.1,1790.9,1.11682]
[1743763431523,1.11669,1791.2,1791.0,1.11676]
[1743763431835,1.4736,1791.1,1791.0,1.11676]
[1743763432123,1.4736,1791.1,1790.9,2.60311]
[1743763432526,1.11661,1791.3,1790.9,1.4863]
[1743763432721,1.4274,1791.3,1791.1,1.11671]
[1743763432921,4.6352,1791.3,1791.1,1.11668]
[1743763433125,1.11666,1791.2,1791.0,1.11674]
[1743763433332,1.4274,1791.2,1790.9,1.485]
[1743763433630,2.54405,1791.2,1791.0,1.11674]
[1743763433927,2.54405,1791.2,1790.9,1.485]
[1743763433928,1.4274,1791.2,1790.9,1.485]
[1743763434231,2.54411,1791.2,1790.9,2.60183]
[1743763434425,1.11674,1791.1,1790.9,1.485]
[1743763434618,4.6352,1791.1,1790.9,1.11684]
[1743763434815,4.6352,1791.1,1790.9,1.11683]
[1743763435021,2.54412,1791.1,1790.9,1.11683]
[1743763435221,1.4274,1791.1,1791.0,1.11678]
[1743763435528,1.4274,1791.1,1790.9,2.60179]
[1743763435730,4.6352,1791.1,1790.8,5.66722074]
[1743763436030,5.75195,1791.1,1790.8,5.99636074]
[1743763436232,5.75195,1791.1,1790.8,7.11321074]
[1743763436530,1.11678,1791.0,1790.8,1.12525074]
[1743763436723,1.4709,1790.9,1790.8,1.12526074]
[1743763437424,1.4709,1790.9,1790.3,1.11719]
[1743763437425,9.97082,1790.9,1790.3,1.11719]
[1743763437629,3.2078,1790.7,1790.4,1.11714]
[1743763437819,1.11698,1790.7,1790.5,1.11709]
[1743763438024,1.4709,1790.6,1790.5,1.11709]
[1743763438625,1.4709,1790.6,1790.4,0.00836074]
[1743763438820,1.4709,1790.6,1790.5,1.11709]
[1743763439127,1.11697,1790.7,1790.5,1.4927]
[1743763439431,3.2078,1790.7,1790.4,0.00836074]
[1743763439631,1.4543,1790.6,1790.4,0.00836074]
[1743763439827,2.57134,1790.6,1790.4,0.00836074]
[1743763440423,3.2078,1790.5,1790.4,0.00836074]
[1743763440634,5.77919,1790.5,1790.4,0.00836074]
[1743763440825,5.8879,1790.5,1790.4,0.00836074]
[1743763441033,4.6621,1790.5,1790.4,0.00836074]
[1743763441234,4.6621,1790.5,1790.4,1.12551074]
[1743763441529,4.6621,1790.5,1790.4,0.00836074]
[1743763441728,5.77919,1790.5,1790.4,0.00836074]
[1743763441930,1.11742,1790.0,1789.7,41.91756]
[1743763442236,3.2078,1789.8,1789.5,4.542]
[1743763442534,1.5395,1789.7,1789.5,1.519]
[1743763442734,2.65713,1789.7,1789.5,1.519]
[1743763442931,4.32547,1789.6,1789.3,41.91781]
[1743763443135,3.21616074,1789.8,1789.6,1.11764]
[1743763443430,1.5395,1789.7,1789.5,1.1177]
[1743763443633,1.5395,1789.7,1789.6,1.519]
[1743763443937,3.21616074,1789.8,1789.6,2.63665]
[1743763444231,0.00836074,1789.8,1789.6,2.63662]
[1743763444426,0.00836074,1789.8,1789.7,1.519]
[1743763444628,3.21616074,1789.8,1789.7,1.519]
[1743763444831,5.72199074,1789.8,1789.7,1.519]
[1743763445228,4.60446074,1789.8,1789.7,1.519]
[1743763445435,7.10446074,1789.8,1789.2,1.11789]
[1743763445735,3.2078,1789.6,1789.2,1.5258]
[1743763445937,3.2078,1789.6,1789.3,1.11784]
[1743763446231,4.32546,1789.6,1789.4,1.5258]
[1743763446432,3.2078,1789.6,1789.4,1.5258]
[1743763446633,1.11761,1789.7,1789.4,1.5258]
[1743763446830,3.2078,1789.6,1789.4,1.5258]
[1743763447033,1.1179,1789.2,1789.1,1.2363]
[1743763447236,3.2078,1789.2,1788.7,1.5258]
[1743763447431,1.3883,1789.1,1788.8,7.7498]
[1743763447632,4.32547,1789.6,1789.2,1.11787]
[1743763447831,4.7229,1789.6,1789.3,9.57442]
[1743763448027,3.2078,1789.6,1789.4,1.5365]
[1743763448635,3.2078,1789.6,1789.4,2.65428]
[1743763448837,1.5151,1789.7,1789.4,1.5365]
[1743763449037,1.5151,1789.7,1789.5,40.8]
[1743763449333,2.63271,1789.7,1789.5,40.8]
[1743763449534,2.63271,1789.7,1789.3,8.03789]
[1743763449735,2.63271,1789.7,1789.4,2.65427]
[1743763450034,1.5151,1789.7,1789.4,2.65427]
[1743763450236,9.7359814,1789.7,1789.4,2.65427]
[1743763450435,3.2078,1789.6,1789.4,1.5365]
[1743763450627,4.6835,1789.6,1789.3,46.46079]
[1743763450828,4.6835,1789.6,1789.4,1.11776]
[1743763451031,5.80115,1789.6,1789.4,1.5043]
[1743763451231,4.6835,1789.6,1789.4,1.11776]
[1743763451426,4.6835,1789.6,1789.4,1.5043]
[1743763451626,4.6835,1789.6,1789.3,40.8]
[1743763451833,1.4757,1789.6,1789.4,1.11777]
[1743763452032,1.4757,1789.6,1789.4,2.62207]
[1743763452436,8.2208814,1789.7,1789.6,1.11765]
[1743763452632,8.2208814,1789.7,1789.6,3.61765]
[1743763452840,8.2208814,1789.7,1789.6,1.5043]
[1743763453136,8.2208814,1789.7,1789.5,3.49856]
[1743763453137,9.6965814,1789.7,1789.5,3.49856]
[1743763453338,1.4757,1789.7,1789.6,1.11765]
[1743763453633,1.1178,1789.4,1788.8,7.33825]
[1743763453842,1.4513,1789.3,1788.9,8.4501]
[1743763454031,1.4513,1789.3,1789.1,1.11796]
[1743763454430,2.56915,1789.3,1789.0,1.11799]
[1743763454635,2.56915,1789.3,1789.0,2.59039]
[1743763454834,1.4513,1789.3,1789.1,1.11795]
[1743763455032,1.4513,1789.3,1789.2,1.1179]
[1743763455340,3.2078,1789.5,1789.0,1.4724]
[1743763455541,1.4513,1789.3,1789.1,1.11792]
[1743763455737,1.11791,1789.2,1789.0,1.4724]
[1743763455937,1.4513,1789.1,1789.0,1.4724]
[1743763456138,5.7771,1789.1,1788.9,2.4347]
[1743763456333,5.77708,1789.1,1788.8,1.1181]
[1743763456538,5.77708,1789.1,1788.5,2.79585]
[1743763456539,4.6591,1789.1,1788.5,2.79585]
[1743763456739,1.4513,1789.1,1789.0,1.11803]
[1743763456939,3.2078,1789.3,1789.2,1.1179]
[1743763457243,10.372,1789.6,1788.9,2.79523]
[1743763457244,0.00838456,1789.2,1789.1,2.65392]
[1743763457833,0.00838456,1789.2,1789.1,1.536]
[1743763458044,0.00838456,1789.2,1789.1,2.65396]
[1743763459344,0.00838456,1789.2,1789.1,5.15396]
[1743763459549,11.4286814,1789.9,1789.8,1.11753]
[1743763459745,8.2208814,1789.9,1789.8,1.11753]
[1743763460248,8.2208814,1789.9,1789.8,41.91753]
[1743763460437,8.2208814,1789.9,1789.8,3.54163]
[1743763460646,8.2208814,1789.9,1789.8,6.04163]
[1743763460947,8.2208814,1789.9,1789.8,46.84163]
[1743763461840,0.00838456,1790.0,1789.9,1.11747]
[1743763462039,0.00838456,1790.0,1789.9,10.30597]
[1743763462340,0.00838456,1790.0,1789.9,12.80597]
[1743763462550,1.4658,1790.3,1790.2,1.11728]
[1743763463138,1.4658,1790.3,1789.9,11.98216]
[1743763463343,1.4658,1790.3,1790.2,1.11728]
[1743763463540,1.47418456,1790.3,1790.2,1.11728]
[1743763463749,1.47418456,1790.3,1790.2,2.65428]
[1743763464545,1.47418456,1790.3,1790.2,1.537]
[1743763464847,4.68198456,1790.3,1789.8,2.4241]
[1743763465046,7.47504456,1790.3,1789.8,2.4241]
[1743763465246,3.2078,1790.1,1789.7,7.20594456]
[1743763465445,1.4833,1790.0,1789.7,6.08838456]
[1743763465653,1.11751,1789.9,1789.7,1.12596456]
[1743763465951,1.4744,1789.8,1789.7,1.12596456]
[1743763466150,4.32519,1790.1,1789.8,1.1175]
[1743763466344,3.2078,1790.1,1790.0,1.1174]
[1743763466551,1.4744,1790.2,1790.1,1.11734]
[1743763467652,0.00838456,1790.3,1790.2,1.11728]
[1743763467849,0.00838456,1790.3,1790.2,1.5009]
[1743763468151,1.48278456,1790.3,1790.1,1.11731]
[1743763468356,1.48278456,1790.3,1790.2,1.11728]
[1743763468656,0.00838456,1790.3,1790.2,1.11728]
[1743763468850,0.00838456,1790.3,1790.2,5.12298]
[1743763469557,0.00838456,1790.3,1790.2,2.62298]
[1743763470460,0.00838456,1790.3,1790.2,5.12298]
[1743763470654,1.4439,1790.7,1790.6,1.11703]
[1743763470852,5.76868,1790.7,1790.4,1.5057]
[1743763471053,5.76868,1790.7,1790.5,1.11708]
[1743763471254,1.4439,1790.7,1790.6,1.11703]
[1743763471454,4.6517,1790.7,1790.4,7.16483]
[1743763471653,4.6517,1790.7,1790.4,1.11714]
[1743763471860,1.11703,1790.6,1790.3,4.32497]
[1743763472056,1.4454,1790.5,1790.4,1.11715]
[1743763472959,4.6532,1790.5,1790.2,5.9433]
[1743763473161,5.77031,1790.5,1790.3,1.11719]
[1743763473454,4.6532,1790.5,1790.4,1.11715]
[1743763473651,4.6532,1790.5,1790.3,1.11718]
[1743763473852,5.7703,1790.5,1790.3,1.11718]
[1743763474053,1.11717,1790.4,1790.2,1.11726]
[1743763474250,1.4454,1790.3,1790.2,1.11726]
[1743763474457,4.6532,1790.3,1790.2,1.11726]
[1743763474657,1.11736,1790.1,1789.9,1.11743]
[1743763474856,1.4955,1790.0,1789.7,1.12592456]
[1743763475056,1.4955,1790.0,1789.7,1.12593456]
[1743763475255,1.4955,1790.0,1789.7,0.00838456]
[1743763475455,1.4955,1790.0,1789.9,1.11747]
[1743763475861,3.2078,1790.2,1789.7,6.08768456]
[1743763476062,3.2078,1790.0,1789.7,0.00838456]
[1743763476452,4.32511,1790.2,1789.9,1.11745]
[1743763476659,6.00102,1790.2,1789.7,0.00838456]
[1743763476864,4.32525,1790.0,1789.7,1.12595456]
[1743763477162,1.4955,1789.9,1789.8,1.11753]
[1743763477465,3.2078,1790.2,1790.0,1.11734]
[1743763477666,1.4955,1790.1,1790.0,1.11734]
[1743763478063,8.2208814,1790.3,1789.9,10.54244]
[1743763478267,9.6422814,1790.3,1790.2,1.11728]
[1743763478763,1.11728,1790.2,1790.0,2.662]
[1743763478958,1.4214,1790.1,1790.0,3.7794]
[1743763479365,8.2208814,1790.3,1790.0,3.77935]
[1743763479663,1.4214,1790.2,1790.0,2.662]
[1743763479966,1.4214,1790.2,1790.0,3.77938]
[1743763480667,1.4214,1790.2,1790.0,7.203]
[1743763480869,1.4214,1790.2,1790.0,8.32037]
[1743763481068,1.4214,1790.2,1790.1,1.11734]
[1743763481370,1.4214,1790.2,1790.0,8.32035]
[1743763481562,1.4214,1790.2,1790.0,7.203]
[1743763481761,2.53868,1790.2,1790.0,7.203]
[1743763481962,1.4214,1790.2,1790.0,7.203]
[1743763482164,1.4214,1790.2,1790.0,8.3204]
[1743763482463,1.4214,1790.2,1790.1,1.11734]
[1743763482764,8.2208814,1790.6,1790.5,1.11709]
[1743763482967,9.6865814,1790.6,1790.5,1.11709]
[1743763483163,9.6865814,1790.6,1790.4,5.65814]
[1743763483464,8.2208814,1790.6,1790.5,2.55779]
[1743763483865,8.2208814,1790.6,1790.5,47.12479]
[1743763484267,8.2208814,1790.6,1790.5,44.62479]
[1743763484766,9.6196814,1790.6,1790.5,2.7077]
[1743763484970,9.6196814,1790.6,1790.5,2.38409]
[1743763485171,8.2208814,1790.6,1790.5,2.38409]
[1743763485370,8.2208814,1790.6,1790.5,3.81339]
[1743763485771,2.51583,1790.6,1790.5,1.267]
[1743763485972,2.51584,1790.6,1790.4,46.45811]
[1743763486168,1.11709,1790.5,1790.3,1.2411]
[1743763486366,1.3988,1790.4,1790.3,1.2411]
[1743763486566,1.3988,1790.4,1790.3,2.35832]
[1743763486872,2.51595,1790.4,1790.2,1.267]
[1743763487070,5.72375,1790.4,1790.2,1.11726]
[1743763487370,4.6066,1790.4,1790.2,1.11726]
[1743763487570,5.72376,1790.4,1790.2,1.11726]
[1743763487763,1.11733,1790.2,1790.0,1.11738]
[1743763487959,1.5007,1790.1,1790.0,1.11738]
[1743763488370,1.5007,1790.1,1789.8,2.79383]
[1743763488572,1.11741,1790.0,1789.8,2.37112]
[1743763488866,1.5007,1789.9,1789.7,1.12592456]
[1743763489266,1.5007,1789.9,1789.7,0.00838456]
[1743763489563,1.5007,1789.9,1789.7,1.12592456]
[1743763489766,1.5007,1789.9,1789.8,1.11753]
[1743763490266,1.5007,1789.9,1789.8,2.55443]
[1743763490467,1.11733,1790.2,1789.8,4.6447]
[1743763490468,3.2078,1790.2,1789.8,4.6447]
[1743763490673,1.4426,1790.1,1790.0,1.1174]
[1743763491175,1.4426,1790.1,1789.7,1.12594456]
[1743763491472,1.4426,1790.1,1790.0,1.1174]
[1743763491672,1.4426,1790.1,1789.9,1.11742]
[1743763491872,2.55995,1790.1,1789.8,2.2912]
[1743763492073,1.4426,1790.1,1789.9,1.11745]
[1743763492271,1.4426,1790.1,1790.0,1.1174]
[1743763492665,1.4426,1790.1,1789.8,5.8184]
[1743763492666,1.4426,1790.1,1789.8,2.6106]
[1743763492864,2.55995,1790.1,1789.7,0.00838456]
[1743763493073,1.4426,1790.1,1789.8,1.11751]
[1743763493376,5.76779,1790.1,1789.8,1.11751]
[1743763493576,5.76779,1790.1,1789.7,2.60322456]
[1743763493577,1.1174,1790.0,1789.7,2.60322456]
[1743763493775,1.3963,1789.9,1789.7,2.60322456]
[1743763493973,4.6041,1789.9,1789.7,0.00838456]
[1743763494185,1.11753,1789.8,1789.7,0.00838456]
[1743763494479,1.3963,1789.8,1789.7,0.00838456]
[1743763494674,1.1837,1790.1,1789.7,0.00838456]
[1743763494869,1.3963,1790.1,1790.0,1.11736]
[1743763495575,1.3963,1790.1,1789.9,1.4773]
[1743763495775,10.31695115,1790.0,1789.9,2.5947]
[1743763496375,10.31695115,1790.0,1789.8,1.1175]
[1743763496676,10.31695115,1790.0,1789.9,1.11747]
[1743763496876,10.31695115,1790.0,1789.8,2.61969]
[1743763497070,1.4524,1789.9,1789.7,5.66693456]
[1743763497275,4.6602,1789.9,1789.7,0.00838456]
[1743763497587,2.5699,1789.9,1789.7,0.00838456]
[1743763497877,1.11753,1789.8,1789.7,0.00838456]
[1743763498077,2.56993,1789.8,1789.7,0.00838456]
[1743763498677,6.74625,1789.8,1789.2,48.0987]
[1743763498976,1.11772,1789.5,1789.2,42.0555]
[1743763499179,5.77798,1789.4,1789.2,40.8]
[1743763499383,5.77798,1789.4,1789.2,41.91789]
[1743763499384,4.6602,1789.4,1789.2,41.91789]
[1743763499571,5.77799,1789.4,1789.2,40.8]
[1743763499776,5.77799,1789.4,1789.2,1.11789]
[1743763499975,1.4524,1789.4,1789.3,1.11784]
[1743763500174,1.4524,1789.4,1789.2,2.55346]
[1743763500380,4.6602,1789.4,1789.3,1.11784]
[1743763500579,1.4524,1789.4,1789.3,1.11784]
[1743763500776,0.00838456,1789.5,1789.4,1.11778]
[1743763500977,8.35906333,1789.5,1789.4,2.55338]
[1743763501390,8.35906333,1789.5,1789.4,43.35338]
[1743763501582,8.35906333,1789.5,1789.4,45.85338]
[1743763501882,0.90222319,1789.5,1789.4,45.85338]
[1743763503378,0.90222319,1789.5,1789.4,47.89438]
[1743763503683,0.90222319,1789.5,1789.4,50.39438]
[1743763503877,0.90222319,1789.5,1789.4,47.89438]
[1743763504080,0.90222319,1789.5,1789.4,5.9766]
[1743763504374,2.31792319,1789.5,1789.4,5.9766]
[1743763504779,0.90222319,1789.5,1789.4,7.09438]
[1743763505385,0.00838456,1789.6,1789.4,4.541]
[1743763505587,3.2078,1789.5,1789.2,2.7215]
[1743763505790,4.32567,1789.3,1789.1,0.00838456]
[1743763505991,1.11813,1788.9,1788.3,11.43591884]
[1743763506184,1.4625,1788.8,1788.6,1.11826]
[1743763506382,1.4625,1788.8,1788.4,4.26195]
[1743763506583,7.1179,1789.2,1788.8,2.79539]
[1743763506783,4.32562,1789.4,1788.9,6.60458]
[1743763506784,3.2078,1789.4,1788.9,6.60458]
[1743763506983,1.4625,1789.3,1788.9,1.1723]
[1743763507183,1.4625,1789.3,1789.0,1.47438456]
[1743763507383,2.58039,1789.3,1789.0,2.59238456]
[1743763507584,2.58038,1789.3,1789.0,2.59239456]
[1743763507888,1.4625,1789.3,1789.1,1.11796]
[1743763508088,1.4625,1789.3,1789.2,1.1179]
[1743763508588,10.31695115,1789.4,1789.1,10.54364]
[1743763508891,10.31695115,1789.4,1789.3,4.32564]
[1743763509291,10.31695115,1789.4,1789.3,6.82564]
[1743763510092,10.31695115,1789.4,1789.3,47.62564]
[1743763510293,10.31695115,1789.4,1789.3,45.12564]
[1743763510595,10.31695115,1789.4,1789.3,41.91784]
[1743763510786,4.6539,1789.5,1789.4,1.11778]
[1743763510986,3.2078,1789.5,1789.0,0.00838456]
[1743763511186,1.253,1789.4,1789.2,1.11786]
[1743763511386,1.253,1789.4,1789.1,2.79487]
[1743763511588,0.00838456,1789.6,1789.4,1.11774]
[1743763511791,0.00838456,1789.6,1789.2,2.62744]
[1743763512003,0.00838456,1789.6,1789.1,4.541]
[1743763512004,1.1178,1789.4,1789.1,5.65892]
[1743763512287,3.2078,1789.3,1789.0,0.00838456]
[1743763512484,1.253,1789.2,1789.0,1.12638456]
[1743763512685,2.37091,1789.2,1789.0,0.00838456]
[1743763512890,1.253,1789.2,1789.0,0.00838456]
[1743763513191,2.37092,1789.2,1789.0,0.00838456]
[1743763513389,4.32576,1789.1,1789.0,0.00838456]
[1743763513786,6.82576,1789.1,1789.0,0.00838456]
[1743763514687,2.37092,1789.2,1789.0,0.00838456]
[1743763514888,1.253,1789.2,1789.1,1.11796]
[1743763515295,1.253,1789.2,1789.1,2.55766]
[1743763515790,3.2078,1789.5,1789.3,1.1178]
[1743763516087,1.1763,1789.5,1789.4,1.11778]
[1743763516399,10.32533571,1789.6,1789.4,7.09843]
[1743763516698,10.32533571,1789.6,1789.4,7.09847]
[1743763516989,14.65080571,1789.6,1789.4,4.541]
[1743763517190,13.53313571,1789.6,1789.3,1.2099]
[1743763517391,14.65083571,1789.6,1789.3,1.2099]
[1743763517695,3.21618456,1789.6,1789.3,1.2099]
[1743763517891,3.21618456,1789.6,1789.3,2.32773]
[1743763518093,3.21618456,1789.6,1789.4,1.11775]
[1743763518302,3.21618456,1789.6,1789.5,1.11772]
[1743763518496,0.00838456,1789.6,1789.5,1.11772]
[1743763518698,0.00838456,1789.6,1789.5,2.62442]
[1743763519191,2.7943,1789.5,1788.8,7.7488]
[1743763519500,1.11796,1789.1,1788.9,2.62477]
[1743763519694,1.11796,1789.1,1788.9,1.5067]
[1743763519898,4.32576,1789.1,1788.9,1.5067]
[1743763520194,4.32576,1789.1,1788.8,1.2967]
[1743763520399,4.46,1789.4,1789.1,1.11794]
[1743763520594,1.2522,1789.4,1789.3,1.11784]
[1743763520898,1.2522,1789.4,1789.2,1.1179]
[1743763521098,1.11773,1789.5,1789.3,1.11783]
[1743763521301,3.21618456,1789.6,1789.3,2.56583]
[1743763521598,1.1178,1789.4,1789.2,2.33759]
[1743763521787,1.1178,1789.4,1789.2,2.6677]
[1743763521994,1.11784,1789.3,1789.2,1.2197]
[1743763522393,3.2078,1789.4,1789.2,1.2197]
[1743763522394,4.32562,1789.4,1789.2,1.2197]
[1743763522595,13.6216889,1789.6,1789.3,2.7946]
[1743763522793,1.11775,1789.5,1789.2,6.87859]
[1743763523090,11.5315589,1789.6,1789.3,1.11779]
[1743763523291,10.4138889,1789.6,1789.4,1.11777]
[1743763523500,10.4138889,1789.6,1789.5,1.5316]
[1743763523694,11.8073889,1789.6,1789.5,1.5316]
[1743763523901,11.8073889,1789.6,1789.3,1.11782]
[1743763524098,1.40188456,1789.6,1789.3,1.11782]
[1743763524301,2.51958456,1789.6,1789.3,1.11782]
[1743763524603,2.51954456,1789.6,1789.4,1.11774]
[1743763524793,1.40188456,1789.6,1789.2,10.087]
[1743763524990,3.2078,1789.5,1789.2,7.2923]
[1743763525195,1.3935,1789.4,1789.3,1.11784]
[1743763525393,1.3935,1789.4,1789.1,5.7161]
[1743763525595,4.32567,1789.3,1789.1,5.65894]
[1743763525795,1.3935,1789.2,1789.1,5.65894]
[1743763526205,1.3935,1789.2,1789.1,1.11794]
[1743763526398,2.51143,1789.2,1789.0,2.65796456]
[1743763526699,2.51143,1789.2,1789.1,1.11796]